bitfinex-derivatives/quotes_SOLF0:USTF0_20241002
["timestamp","ask_amount","ask_price","bid_price","bid_amount"]
[1727849466169,8.38,146.68,146.63,8.38]
[1727849466369,2.7281,146.65,146.63,8.38]
[1727849472689,2.7281,146.65,146.64,8.38]
[1727849474178,2.7277,146.67,146.64,8.38]
[1727849474380,0.12502,146.69,146.64,8.38]
[1727849475376,0.12502,146.69,146.67,8.38]
[1727849475676,0.12502,146.69,146.68,8.38]
[1727849476487,2.85242,146.69,146.65,2.7279]
[1727849476677,2.85242,146.69,146.67,8.38]
[1727849477288,0.12502,146.69,146.64,2.6235]
[1727849477478,2.7274,146.68,146.67,8.38]
[1727849477882,2.7274,146.68,146.64,2.6235]
[1727849478090,2.7274,146.68,146.66,8.38]
[1727849479793,0.12502,146.69,146.67,8.38]
[1727849479988,0.12502,146.69,146.68,8.38]
[1727849480282,0.12502,146.69,146.67,8.38]
[1727849481288,2.7274,146.68,146.67,8.38]
[1727849483588,2.7274,146.68,146.66,8.38]
[1727849492189,0.12502,146.69,146.66,8.38]
[1727849492392,2.85232,146.69,146.67,8.38]
[1727849494492,0.12502,146.69,146.67,8.38]
[1727849494989,0.12502,146.69,146.64,2.6235]
[1727849494990,0.12502,146.69,146.68,8.38]
[1727849495688,0.12502,146.69,146.68,11.1074]
[1727849495893,0.12502,146.69,146.68,8.38]
[1727849498686,0.12502,146.69,146.67,8.38]
[1727849498890,0.12502,146.69,146.64,2.6235]
[1727849499193,0.12502,146.69,146.66,8.38]
[1727849499394,2.7275,146.68,146.66,8.38]
[1727849501597,2.7275,146.68,146.64,5.3516]
[1727849501797,2.7275,146.68,146.66,8.38]
[1727849503994,0.12502,146.69,146.67,8.38]
[1727849504189,0.12502,146.69,146.68,8.38]
[1727849509791,2.7265,146.73,146.68,8.38]
[1727849509995,2.7265,146.73,146.71,8.38]
[1727849510398,0.12502,146.75,146.71,8.38]
[1727849511602,2.7266,146.73,146.71,8.38]
[1727849511800,2.7266,146.73,146.69,4.1139]
[1727849511801,0.12502,146.75,146.72,8.38]
[1727849512001,2.85122,146.75,146.72,8.38]
[1727849512601,2.7263,146.74,146.72,8.38]
[1727849512802,0.12502,146.75,146.73,8.38]
[1727849512992,0.12502,146.75,146.74,11.1063]
[1727849513190,0.12502,146.81,146.74,8.38]
[1727849513398,0.12502,146.81,146.77,8.38]
[1727849514005,0.12502,146.81,146.79,11.1052]
[1727849514202,0.12502,146.81,146.7,1.3674]
[1727849514203,0.12502,146.81,146.8,8.38]
[1727849514703,0.12502,146.81,146.73,57.57971793]
[1727849514906,0.12502,146.81,146.8,8.38]
[1727849515405,0.12502,146.81,146.79,8.38]
[1727849515900,0.12502,146.81,146.8,8.38]
[1727849516100,8.50502,146.87,146.8,8.38]
[1727849516303,2.7242,146.86,146.83,8.38]
[1727849517707,0.12502,146.87,146.83,8.38]
[1727849517908,2.7242,146.85,146.83,8.38]
[1727849519508,8.50502,146.87,146.82,8.38]
[1727849519904,2.7244,146.84,146.82,8.38]
[1727849520112,8.50502,146.87,146.82,8.38]
[1727849520608,2.7244,146.85,146.82,8.38]
[1727849520807,8.50502,146.87,146.83,8.38]
[1727849521003,0.12502,146.87,146.83,8.38]
[1727849522605,2.7241,146.86,146.83,8.38]
[1727849525016,0.12502,146.87,146.83,8.38]
[1727849525017,2.7242,146.85,146.83,8.38]
[1727849525312,0.12502,146.87,146.83,8.38]
[1727849525823,2.7242,146.86,146.83,8.38]
[1727849526315,2.7243,146.85,146.83,8.38]
[1727849526614,0.12502,146.87,146.83,8.38]
[1727849528015,2.7241,146.86,146.83,8.38]
[1727849528417,8.50502,146.87,146.83,8.38]
[1727849528611,2.7243,146.85,146.83,8.38]
[1727849529119,2.7243,146.85,146.84,8.38]
[1727849529409,0.12502,146.87,146.84,8.38]
[1727849529614,2.7241,146.86,146.84,8.38]
[1727849530010,0.12502,146.87,146.85,8.38]
[1727849530410,0.12502,146.87,146.83,8.38]
[1727849530607,8.50502,146.87,146.82,8.38]
[1727849530811,8.50502,146.87,146.83,8.38]
[1727849531209,2.7244,146.84,146.83,8.38]
[1727849531817,8.50502,146.87,146.81,8.38]
[1727849532012,8.38,146.85,146.78,1.3093]
[1727849532213,8.38,146.85,146.8,8.38]
[1727849532416,8.38,146.85,146.81,8.38]
[1727849533120,2.7245,146.84,146.81,8.38]
[1727849533517,2.7246,146.83,146.81,8.38]
[1727849533719,8.38,146.85,146.78,1.3093]
[1727849534022,8.38,146.84,146.79,8.38]
[1727849534716,2.7251,146.81,146.79,8.38]
[1727849535216,2.7253,146.79,146.77,10.9821]
[1727849535420,8.38,146.8,146.75,0.12502]
[1727849535621,8.38,146.8,146.75,8.50502]
[1727849535921,8.38,146.8,146.76,8.38]
[1727849536324,8.38,146.79,146.75,0.12502]
[1727849536916,2.7259,146.76,146.75,0.12502]
[1727849539216,8.38,146.79,146.75,0.12502]
[1727849539217,2.7258,146.77,146.75,0.12502]
[1727849540428,2.7259,146.76,146.75,0.12502]
[1727849542327,2.6405,146.86,146.75,0.12502]
[1727849542526,2.7253,146.79,146.77,8.38]
[1727849544128,2.6405,146.86,146.78,8.38]
[1727849544325,9.6821,146.86,146.81,8.38]
[1727849544927,2.7247,146.83,146.81,8.38]
[1727849549226,2.7247,146.83,146.8,8.38]
[1727849551731,8.38,146.84,146.8,8.38]
[1727849551930,2.7249,146.82,146.8,8.38]
[1727849552327,8.38,146.84,146.8,8.38]
[1727849553217,2.725,146.82,146.8,8.38]
[1727849557529,2.725,146.82,146.81,8.38]
[1727849560226,8.50502,146.87,146.81,8.38]
[1727849560427,0.12502,146.87,146.83,8.38]
[1727849560632,0.12502,146.87,146.84,8.38]
[1727849560827,2.7242,146.86,146.84,8.38]
[1727849561023,0.12502,146.87,146.85,8.38]
[1727849561431,0.12502,146.87,146.84,8.38]
[1727849562029,2.7242,146.86,146.84,8.38]
[1727849562732,2.724,146.86,146.84,8.38]
[1727849563841,2.84902,146.87,146.84,8.38]
[1727849570033,2.724,146.86,146.84,8.38]
[1727849570649,2.7242,146.86,146.84,8.38]
[1727849570946,0.12502,146.87,146.84,8.38]
[1727849571246,2.7242,146.86,146.84,8.38]
[1727849571443,0.12502,146.87,146.84,8.38]
[1727849571940,2.7241,146.86,146.84,8.38]
[1727849573349,0.12502,146.87,146.83,9.7653]
[1727849573954,2.7244,146.84,146.83,9.7653]
[1727849575645,0.12502,146.87,146.83,9.7653]
[1727849575852,2.7243,146.85,146.83,9.7653]
[1727849579847,0.12502,146.87,146.83,1.3853]
[1727849580047,8.38,146.86,146.83,1.3853]
[1727849580244,0.12502,146.87,146.84,8.38]
[1727849580949,2.84902,146.87,146.85,8.38]
[1727849582762,0.12502,146.87,146.85,8.38]
[1727849583459,2.84902,146.87,146.85,8.38]
[1727849584665,0.12502,146.87,146.86,8.38]
[1727849585448,0.12502,146.87,146.86,11.104]
[1727849586155,0.12502,146.87,146.86,8.38]
[1727849588559,0.12502,146.87,146.85,8.38]
[1727849589056,0.12502,146.87,146.84,8.38]
[1727849589363,8.50502,146.87,146.83,1.3853]
[1727849589570,8.38,146.85,146.79,2.6446]
[1727849589860,8.38,146.85,146.79,11.0246]
[1727849590264,2.7248,146.82,146.79,11.0246]
[1727849590761,2.7248,146.82,146.79,9.6969]
[1727849590959,2.7249,146.82,146.79,8.38]
[1727849591258,8.38,146.85,146.8,8.38]
[1727849591454,1.3257,146.86,146.76,1.2821]
[1727849591455,0.12518,146.95,146.84,8.38]
[1727849591654,8.38,147.01,146.93,8.38]
[1727849591960,2.6213,147.04,146.98,8.38]
[1727849592157,11.0013,147.04,146.98,8.38]
[1727849592362,2.6213,147.04,146.98,8.38]
[1727849592957,5.3421,147.04,146.98,15.91343842]
[1727849593651,5.3421,147.04,146.98,20.59343842]
[1727849594063,2.6213,147.04,146.98,20.59343842]
[1727849594363,2.7211,147.03,146.98,13.06]
[1727849595265,2.7211,147.02,146.98,13.06]
[1727849596566,2.6213,147.04,147.0,13.06]
[1727849596761,2.721,147.03,147.0,13.06]
[1727849598667,2.721,147.03,146.97,2.722]
[1727849598856,2.721,147.03,147.0,13.06]
[1727849601168,0.12502,147.05,147.0,13.06]
[1727849601367,2.721,147.03,147.0,13.06]
[1727849603069,0.12502,147.05,147.0,13.06]
[1727849603366,2.7209,147.03,147.0,13.06]
[1727849604259,0.12502,147.05,147.0,13.06]
[1727849604459,2.7207,147.04,147.0,13.06]
[1727849605267,2.7207,147.04,147.0,15.7814]
[1727849605568,2.7207,147.04,147.0,13.06]
[1727849605769,0.12502,147.05,147.0,13.06]
[1727849605770,2.7209,147.03,147.0,13.06]
[1727849606468,0.12502,147.05,147.0,13.06]
[1727849607466,2.721,147.03,147.0,13.06]
[1727849609367,0.12502,147.05,147.0,13.06]
[1727849609967,2.7211,147.03,147.0,13.06]
[1727849610975,0.12502,147.05,147.0,13.06]
[1727849611167,0.12502,147.05,147.03,13.06]
[1727849611475,0.12502,147.05,147.04,13.06]
[1727849611778,3.44405935,147.11,147.04,13.06]
[1727849611980,2.7204,147.06,147.04,13.06]
[1727849612976,2.7205,147.05,147.04,13.06]
[1727849614179,2.7198,147.09,147.04,13.06]
[1727849614375,0.12502,147.11,147.04,13.06]
[1727849615481,3.5110606,147.11,147.04,13.06]
[1727849616878,2.7204,147.06,147.04,13.06]
[1727849621682,2.7204,147.06,147.05,8.35]
[1727849630787,2.7208,147.04,147.02,1.2901]
[1727849630990,2.7208,147.04,147.03,8.35]
[1727849631498,8.35,147.07,147.02,1.2901]
[1727849631689,2.7209,147.03,147.02,1.2901]
[1727849632392,8.35,147.06,146.99,0.12502]
[1727849632586,8.35,147.04,146.99,0.12502]
[1727849633093,3.44417669,147.11,146.99,0.12502]
[1727849633094,2.7214,147.0,146.99,0.12502]
[1727849635981,2.7214,147.0,146.99,8.47502]
[1727849637788,8.35,147.04,146.99,8.47502]
[1727849637985,2.7214,147.01,146.99,8.47502]
[1727849638283,2.7214,147.01,147.0,8.35]
[1727849638889,2.7211,147.02,147.0,8.35]
[1727849642496,8.35,147.08,147.0,8.35]
[1727849642696,2.7224,147.1,147.04,8.35]
[1727849642892,8.35,147.09,147.04,8.35]
[1727849643198,2.7205,147.05,147.04,8.35]
[1727849643493,2.7224,147.1,147.0,1.392]
[1727849643494,8.35,147.07,147.0,1.392]
[1727849643700,2.7212,147.02,147.0,1.392]
[1727849644001,2.7212,147.02,147.01,8.35]
[1727849644897,8.35,147.06,147.0,8.35]
[1727849645298,2.7213,147.01,147.0,8.35]
[1727849646200,2.721,147.03,147.0,8.35]
[1727849646493,2.721,147.03,147.02,8.35]
[1727849647497,2.7214,147.0,146.99,0.12502]
[1727849647695,2.7214,147.0,146.99,8.47502]
[1727849649106,8.35,147.05,146.99,8.47502]
[1727849649800,2.7214,147.0,146.99,0.12502]
[1727849652114,2.7214,147.0,146.99,8.47502]
[1727849652410,2.7213,147.01,146.99,8.47502]
[1727849653813,8.35,147.04,146.99,8.47502]
[1727849654011,2.7214,147.0,146.99,8.47502]
[1727849655010,8.35,147.04,146.99,8.47502]
[1727849655209,2.7213,147.01,146.99,8.47502]
[1727849658114,2.7214,147.0,146.99,8.47502]
[1727849661316,2.7213,147.01,146.99,8.47502]
[1727849662616,8.35,147.04,146.99,8.47502]
[1727849662818,2.7212,147.02,146.99,8.47502]
[1727849664615,2.721,147.03,147.0,8.35]
[1727849665023,2.7207,147.05,147.0,8.35]
[1727849665214,8.35,147.06,147.0,8.35]
[1727849666115,2.7211,147.02,147.0,8.35]
[1727849670031,2.7224,147.1,147.0,11.0714]
[1727849670319,8.35,147.06,147.0,11.0714]
[1727849670525,2.7209,147.03,147.0,11.0714]
[1727849671227,8.35,147.06,147.02,8.35]
[1727849671528,8.35,147.06,147.01,8.35]
[1727849672419,2.721,147.03,147.01,8.35]
[1727849673821,2.7211,147.02,147.01,8.35]
[1727849674626,8.35,147.06,147.01,8.35]
[1727849674627,2.7209,147.03,147.01,8.35]
[1727849677027,2.7224,147.1,147.02,8.35]
[1727849677326,8.35,147.09,147.04,8.35]
[1727849677832,2.7203,147.06,147.04,8.35]
[1727849679523,8.35,147.09,147.04,8.35]
[1727849679828,2.7205,147.05,147.03,8.35]
[1727849680327,2.7209,147.03,147.02,1.3718]
[1727849682831,2.7211,147.02,147.01,8.35]
[1727849685231,8.35,147.06,147.01,8.35]
[1727849686027,2.721,147.03,147.01,8.35]
[1727849690224,2.7211,147.02,146.99,2.84662]
[1727849690529,2.7211,147.02,147.0,8.35]
[1727849692126,2.721,147.03,147.0,8.35]
[1727849692324,2.721,147.03,147.01,8.35]
[1727849693639,2.7201,147.08,147.01,11.0711]
[1727849693940,9.719,147.1,147.05,8.35]
[1727849694524,2.7203,147.07,147.05,8.35]
[1727849697234,2.7201,147.08,147.06,8.35]
[1727849697440,0.12502,147.11,147.07,8.35]
[1727849697936,2.7197,147.1,147.07,8.35]
[1727849698529,2.7197,147.1,147.08,8.35]
[1727849699336,2.7198,147.09,147.08,8.35]
[1727849700435,2.7201,147.08,147.04,2.7206]
[1727849700631,8.47502,147.11,147.07,8.35]
[1727849701033,2.7198,147.09,147.07,8.35]
[1727849701227,8.47502,147.11,147.07,8.35]
[1727849702139,2.7199,147.09,147.07,8.35]
[1727849702539,8.47502,147.11,147.07,8.35]
[1727849702741,2.72,147.08,147.07,8.35]
[1727849703739,2.7199,147.09,147.07,8.35]
[1727849710043,2.72,147.08,147.07,8.35]
[1727849710243,8.35,147.09,147.04,8.35]
[1727849710946,2.7205,147.06,147.04,8.35]
[1727849711548,2.7205,147.06,147.02,4.1128]
[1727849711549,8.35,147.09,147.05,8.35]
[1727849711842,2.7202,147.07,147.05,8.35]
[1727849713843,8.35,147.06,147.02,1.3918]
[1727849714348,2.7209,147.03,147.02,1.3918]
[1727849714745,8.35,147.06,147.02,1.3918]
[1727849714946,2.7208,147.04,147.02,1.3918]
[1727849715546,2.7208,147.04,147.03,8.35]
[1727849716651,2.7204,147.06,147.03,8.35]
[1727849716945,2.7204,147.06,147.04,8.35]
[1727849717945,2.6675,147.1,147.04,8.35]
[1727849718151,2.6675,147.1,147.05,8.35]
[1727849718152,2.72,147.08,147.05,8.35]
[1727849718653,2.7202,147.07,147.05,8.35]
[1727849720753,8.35,147.09,147.04,8.35]
[1727849720946,8.35,147.08,147.03,8.35]
[1727849722855,8.35,147.09,147.04,8.35]
[1727849723054,2.7202,147.07,147.04,8.35]
[1727849724048,2.7204,147.06,147.04,8.35]
[1727849725249,2.7205,147.05,147.03,8.35]
[1727849726751,8.35,147.08,147.03,8.35]
[1727849726954,2.7204,147.06,147.04,8.35]
[1727849728056,8.35,147.06,147.0,2.6542]
[1727849728253,8.35,147.04,147.0,9.695]
[1727849728454,8.35,147.06,147.0,9.695]
[1727849728661,1.3277,147.09,147.01,8.35]
[1727849728862,8.35,147.07,147.01,8.35]
[1727849729359,8.35,147.09,147.04,8.35]
[1727849729866,2.7203,147.07,147.04,8.35]
[1727849734473,2.7203,147.06,147.04,8.35]
[1727849736969,8.35,147.08,147.01,1.2698]
[1727849737165,2.7207,147.04,147.02,8.35]
[1727849737478,8.35,147.06,147.02,8.35]
[1727849737778,2.7208,147.04,147.02,8.35]
[1727849740372,2.7209,147.03,147.0,2.7251]
[1727849740573,8.35,147.05,147.0,2.7251]
[1727849741076,2.7211,147.02,147.0,2.7251]
[1727849742175,2.7213,147.01,147.0,1.3801]
[1727849742583,8.35,147.04,147.0,1.3801]
[1727849742779,2.7212,147.02,147.0,1.3801]
[1727849745479,2.7213,147.01,147.0,1.3801]
[1727849746880,8.35,147.04,147.0,1.3801]
[1727849747080,2.7211,147.02,147.0,1.3801]
[1727849748985,8.35,147.04,146.99,0.12502]
[1727849749290,8.35,147.05,146.99,8.47502]
[1727849750579,2.721,147.03,146.99,11.19662]
[1727849752296,8.35,147.07,147.02,8.35]
[1727849752791,8.35,147.06,147.01,8.35]
[1727849753692,2.7208,147.04,147.01,8.35]
[1727849757385,2.7208,147.04,147.0,9.7041]
[1727849759191,2.7212,147.02,147.0,1.3541]
[1727849759391,8.35,147.05,147.0,1.3541]
[1727849760401,8.35,147.03,147.0,1.3541]
[1727849760901,2.7211,147.02,147.0,1.3541]
[1727849761201,8.35,147.03,147.0,1.3541]
[1727849762093,11.071,147.03,147.0,1.3541]
[1727849762501,8.35,147.03,147.0,1.3541]
[1727849762703,2.7211,147.02,147.0,1.3541]
[1727849764390,2.7213,147.01,147.0,1.3541]
[1727849765197,2.7213,147.01,146.99,0.12502]
[1727849765397,2.7214,147.0,146.99,0.12502]
[1727849766608,2.7211,147.02,146.99,0.12502]
[1727849767403,8.35,147.04,146.99,8.47502]
[1727849767600,2.721,147.03,146.99,11.19662]
[1727849767907,8.35,147.07,147.02,8.35]
[1727849768098,2.7207,147.05,147.02,8.35]
[1727849768294,2.7207,147.05,147.01,8.35]
[1727849768902,8.35,147.06,147.01,8.35]
[1727849769102,8.35,147.03,146.99,0.12502]
[1727849769310,8.35,147.02,146.99,0.12502]
[1727849770102,11.0714,147.0,146.99,0.12502]
[1727849771321,2.7224,146.95,146.93,0.12502]
[1727849772319,8.35,146.96,146.93,0.12502]
[1727849772615,2.7226,146.94,146.93,0.12502]
[1727849773812,2.6507,147.02,146.93,0.12502]
[1727849773813,2.7216,147.0,146.93,0.12502]
[1727849774011,8.35,146.96,146.93,0.12502]
[1727849775017,8.35,146.95,146.93,0.12502]
[1727849775412,11.0726,146.94,146.93,0.12502]
[1727849776413,2.7232,146.91,146.87,0.12502]
[1727849776916,2.7232,146.91,146.87,8.47502]
[1727849778419,11.0734,146.9,146.87,0.12502]
[1727849778718,8.35,146.9,146.87,0.12502]
[1727849778915,2.7236,146.89,146.87,0.12502]
[1727849779107,11.0736,146.89,146.87,0.12502]
[1727849779305,8.35,146.89,146.87,0.12502]
[1727849780317,2.7237,146.88,146.87,0.12502]
[1727849780520,8.35,146.89,146.87,0.12502]
[1727849781421,11.0737,146.89,146.87,0.12502]
[1727849781622,8.35,146.89,146.87,0.12502]
[1727849782234,2.7237,146.88,146.87,0.12502]
[1727849783122,11.0735,146.89,146.87,0.12502]
[1727849783520,8.35,146.88,146.87,0.12502]
[1727849783721,11.0737,146.88,146.87,0.12502]
[1727849784612,8.35,146.88,146.81,0.12502]
[1727849784927,8.35,146.83,146.81,0.12502]
[1727849785124,0.12502,146.93,146.81,0.12502]
[1727849785125,8.35,146.82,146.81,0.12502]
[1727849785321,11.0748,146.82,146.81,0.12502]
[1727849785821,8.35,146.82,146.81,0.12502]
[1727849786415,8.35,146.83,146.81,0.12502]
[1727849786614,8.35,146.84,146.81,0.12502]
[1727849786822,8.35,146.86,146.81,2.84992]
[1727849787123,8.35,146.85,146.81,0.12502]
[1727849788126,0.12502,146.93,146.81,0.12502]
[1727849788127,8.35,146.84,146.81,0.12502]
[1727849789124,8.35,146.84,146.81,2.85002]
[1727849789321,8.35,146.86,146.81,2.85002]
[1727849789721,11.0742,146.86,146.81,2.85002]
[1727849790522,8.35,146.86,146.81,2.85002]
[1727849790721,2.7242,146.85,146.81,2.85002]
[1727849791725,2.7242,146.85,146.81,0.12502]
[1727849792423,2.7242,146.85,146.81,2.85002]
[1727849793124,8.35,146.86,146.82,2.7247]
[1727849793830,11.0741,146.86,146.81,11.19992]
[1727849794319,0.12502,146.93,146.81,8.47502]
[1727849794526,8.35,146.88,146.84,2.7243]
[1727849794927,8.35,146.87,146.83,8.35]
[1727849795630,8.35,146.86,146.82,1.3586]
[1727849796021,8.35,146.85,146.82,1.3586]
[1727849796222,2.7245,146.84,146.81,0.12502]
[1727849796428,8.35,146.83,146.81,0.12502]
[1727849797320,8.35,146.84,146.81,0.12502]
[1727849798131,8.35,146.84,146.81,2.85002]
[1727849798327,8.35,146.86,146.81,11.20002]
[1727849798524,11.0741,146.86,146.81,11.20002]
[1727849799029,2.7242,146.85,146.81,11.20002]
[1727849799724,11.0741,146.86,146.82,2.7248]
[1727849800126,8.35,146.86,146.81,8.47502]
[1727849801230,2.7242,146.85,146.81,11.19982]
[1727849801432,8.35,146.86,146.81,11.19982]
[1727849802028,11.0742,146.86,146.82,2.7248]
[1727849802431,8.35,146.87,146.82,8.35]
[1727849803432,11.0739,146.87,146.83,2.7245]
[1727849803633,8.35,146.87,146.83,1.3699]
[1727849803937,11.0738,146.88,146.84,11.0744]
[1727849804636,75.50487143,146.93,146.83,1.3699]
[1727849804637,2.7236,146.89,146.85,11.0742]
[1727849804829,8.35,146.9,146.85,11.0742]
[1727849805133,11.0734,146.9,146.85,11.0742]
[1727849805538,8.35,146.91,146.86,8.35]
[1727849806133,8.35,146.92,146.87,8.35]
[1727849806435,8.35,146.92,146.84,3.41232621]
[1727849806436,83.85487143,146.93,146.89,8.35]
[1727849806631,8.47502,146.93,146.89,11.0734]
[1727849806827,11.19792,146.93,146.89,8.35]
[1727849807832,8.47502,146.93,146.89,8.35]
[1727849808042,2.7229,146.92,146.89,8.35]
[1727849808342,8.35,146.92,146.87,8.35]
[1727849810144,0.12502,146.93,146.86,8.35]
[1727849810145,8.35,146.91,146.86,8.35]
[1727849810445,2.7235,146.89,146.86,8.35]
[1727849814144,2.7234,146.9,146.86,8.35]
[1727849814445,8.35,146.92,146.87,8.35]
[1727849815339,2.7232,146.91,146.87,11.0738]
[1727849817648,2.84792,146.93,146.88,11.0736]
[1727849818244,0.12502,146.93,146.88,8.35]
[1727849818433,0.12502,146.93,146.89,2.7233]
[1727849820048,2.84782,146.93,146.89,2.7233]
[1727849820842,0.12502,146.93,146.91,8.35]
[1727849821045,1.368,146.98,146.92,8.35]
[1727849821046,8.35,146.98,146.92,8.35]
[1727849821348,2.7225,146.95,146.91,8.35]
[1727849822849,2.7225,146.95,146.91,11.073]
[1727849823248,2.7225,146.95,146.91,8.35]
[1727849823444,2.7225,146.95,146.9,8.35]
[1727849823445,8.35,146.95,146.9,8.35]
[1727849823643,8.35,146.93,146.89,2.6772]
[1727849824150,11.0729,146.93,146.89,2.6772]
[1727849824650,2.7232,146.91,146.89,2.6772]
[1727849824840,8.35,146.92,146.89,2.6772]
[1727849825538,8.35,146.93,146.89,2.6772]
[1727849826343,8.35,146.93,146.89,1.3847]
[1727849826554,8.35,146.92,146.87,0.12502]
[1727849827051,2.7231,146.91,146.87,11.19882]
[1727849827262,8.35,146.92,146.87,8.47502]
[1727849828054,11.073,146.92,146.88,2.7236]
[1727849828854,2.7233,146.9,146.87,0.12502]
[1727849829049,8.35,146.9,146.87,0.12502]
[1727849829645,2.7237,146.88,146.87,0.12502]
[1727849829955,11.0737,146.88,146.87,0.12502]
[1727849832247,11.0736,146.89,146.87,0.12502]
[1727849832449,8.35,146.89,146.87,0.12502]
[1727849832951,2.7237,146.88,146.87,0.12502]
[1727849833163,8.35,146.89,146.87,0.12502]
[1727849834253,2.7237,146.88,146.87,0.12502]
[1727849835459,11.0735,146.89,146.87,0.12502]
[1727849835755,2.7235,146.89,146.87,0.12502]
[1727849836762,8.35,146.91,146.87,2.84882]
[1727849836763,11.0732,146.91,146.87,2.84882]
[1727849836964,11.0732,146.91,146.87,11.19882]
[1727849837158,2.7232,146.91,146.87,11.19882]
[1727849838461,2.7235,146.89,146.87,8.47502]
[1727849838663,8.35,146.91,146.87,8.47502]
[1727849838960,2.7235,146.9,146.87,8.47502]
[1727849839165,8.35,146.89,146.87,0.12502]
[1727849839366,8.35,146.88,146.87,0.12502]
[1727849839552,8.35,146.89,146.87,0.12502]
[1727849839749,8.35,146.9,146.87,0.12502]
[1727849840255,2.7236,146.89,146.87,0.12502]
[1727849840458,2.5948,146.94,146.87,0.12502]
[1727849840656,8.35,146.91,146.87,8.47502]
[1727849841261,8.35,146.91,146.87,0.12502]
[1727849841665,2.7234,146.9,146.87,0.12502]
[1727849843367,2.7234,146.9,146.87,8.47502]
[1727849844059,2.7232,146.91,146.88,8.35]
[1727849844655,2.5948,146.94,146.88,8.35]
[1727849844862,2.723,146.92,146.88,8.35]
[1727849846062,2.7223,146.96,146.89,11.0734]
[1727849846263,8.35,146.94,146.89,11.0734]
[1727849846669,2.7228,146.93,146.89,11.0734]
[1727849850169,2.7225,146.95,146.91,11.073]
[1727849850769,0.12502,146.99,146.94,8.35]
[1727849851062,8.47502,146.99,146.94,8.35]
[1727849851370,8.35,146.98,146.93,8.35]
[1727849851579,8.35,146.95,146.87,1.45412]
[1727849851863,11.0726,146.94,146.9,8.35]
[1727849852466,11.0725,146.95,146.91,11.073]
[1727849852667,8.35,146.96,146.92,8.35]
[1727849853173,11.0723,146.96,146.92,11.0729]
[1727849853969,2.7221,146.97,146.93,11.0727]
[1727849854164,8.35,146.98,146.93,8.35]
[1727849854372,8.35,146.97,146.92,8.35]
[1727849854673,2.7223,146.96,146.92,11.0729]
[1727849854867,8.35,146.97,146.92,8.35]
[1727849855172,2.7221,146.97,146.94,8.35]
[1727849855875,2.7219,146.98,146.94,11.0725]
[1727849856166,8.47502,146.99,146.94,8.35]
[1727849856371,8.35,146.97,146.92,8.35]
[1727849856672,2.7224,146.95,146.92,8.35]